Cogmind - Beta 16 @@@ ROGUE MODE // 2025.12.28 @ 17:20:47 Player: skilledspacepolice Result: Destroyed by H-66 Slayer with Gauss Rifle Performance ------------- Evolutions (4) 2000 Regions Visited (4) 800 Robots Destroyed (18) 90 Value Destroyed (692) 692 Prototype IDs (7) 140 Alien Tech Used (0) 0 Bonus (300) 300 TOTAL SCORE: 4022 Bonus ------- Registered with UFD 300 Cogmind --------- Core Integrity 0/850 Matter 262/300 Energy 99/100 System Corruption 20% Temperature Cool (0) Movement Rolling (100) Location -6/Factory Parts ------- > --- POWER (2) -------- (None) > --- PROPULSION (4) --- Compact Wheel > --- UTILITY (6) ------ Improved Heat Sink 0b10 Decoder Chip [Skirmisher] Targeting Computer Targeting Computer Target Analyzer Target Analyzer > --- WEAPON (3) ------- (None) > --- INVENTORY (5) ---- Launcher Loader Improved Hacking Suite Peak State ------------ > --- POWER ------------ Deuterium Engine Deuterium Engine > --- PROPULSION ------- Armored Treads Advanced Treads Gravmag Array > --- UTILITY ---------- Scrap Suit Cryofiber Web Cooling System Light Humpback > --- WEAPON ----------- Ion Cannon Ion Cannon Enhanced Flamer > --- INVENTORY -------- Deuterium Engine Small Storage Unit 0b10 Decoder Chip [Skirmisher] Advanced Targeting Computer Overtuned Pulse Rifle Beam Cannon Particle Cannon [Rating: 47] Favorites ----------- Power Deuterium Engine Engine Deuterium Engine Power Core Light Fission Core Propulsion Light Treads Treads Light Treads Wheel Compact Wheel Hover Unit Gravmag Array Utility Light Humpback Device Scrap Suit Storage Light Humpback Processor 0b10 Decoder Chip [Skirmisher] Protection Improved Heavy Armor Plating Weapon Grenade Launcher Energy Gun Heavy Laser Energy Cannon Ion Cannon Ballistic Gun Light Assault Rifle Launcher Grenade Launcher Special Weapon Enhanced Flamer Build | -11 -10 -10 -8 -6 ------- Run | Yrd Mat Sub Scr Fac Slots Evolved 8 | . . . . 8 Power 1 | . . . . 1 Propulsion 2 | . . . . 2 Utility 4 | . . . . 4 Weapon 1 | . . . . 1 Parts Attached 39 | 6 3 . 9 21 Power 6 | 1 . . 3 2 Engine 5 | 1 . . 2 2 Core 1 | . . . 1 . Reactor . | . . . . . Propulsion 7 | 2 . . 2 3 Treads 4 | 2 . . 2 . Leg . | . . . . . Wheel 1 | . . . . 1 Hover 2 | . . . . 2 Flight . | . . . . . Utility 15 | 1 1 . 1 12 Device 4 | . . . . 4 Storage 3 | 1 1 . 1 . Processor 7 | . . . . 7 Hackware . | . . . . . Protection 1 | . . . . 1 Artifact . | . . . . . Weapon 11 | 2 2 . 3 4 Energy Gun 1 | . . . . 1 Energy Cannon 4 | . . . 3 1 Ballistic Gun 3 | 2 . . . 1 Ballistic Cannon . | . . . . . Launcher 2 | . 2 . . . Special Weapon 1 | . . . . 1 Impact Weapon . | . . . . . Slashing Weapon . | . . . . . Piercing Weapon . | . . . . . Special Melee Weapon . | . . . . . Unidentified Prototypes . | . . . . . Corrupted Parts 1 | . . . . 1 System Corruption 10 | . . . . 10 Parts Lost 23 | . 1 1 . 21 Power 4 | . . 1 . 3 Propulsion 4 | . . . . 4 Utility 7 | . 1 . . 6 Weapon 8 | . . . . 8 Highest Loss Streak 10 | . 1 1 . 10 To Critical Strikes . | . . . . . Average Backups 13 | 1 4 5 18 6 Power 1 | . 1 1 1 . Propulsion 2 | . 2 2 3 . Utility 3 | . . . 4 2 Weapon 5 | . 1 2 8 2 Tool/Special . | . . . . . Unused Backups 17 | . . . 14 3 Power 1 | . . . 1 . Propulsion 5 | . . . 5 . Utility 6 | . . . 3 3 Weapon 5 | . . . 5 . Tool/Special . | . . . . . Average Slot Usage (%) 79 | . 87 77 82 66 Engine 7 | . 14 6 5 10 Core 4 | . . . 6 . Treads 23 | . 26 28 27 10 Device 2 | . . . . 11 Storage 12 | . 17 14 14 4 Processor 2 | . . . . 9 Energy Cannon 12 | . . . 14 12 Launcher 12 | . 23 28 13 . Peak Build Rating 47 | 6 7 6 24 47 Average Rating 18 | 4 6 5 14 36 On Entrance 7 | . 6 6 5 20 Avg Prop Armor Cover (%) . | . . . . . Naked Turns . | . . . . . Heaviest Build 82 | 11 15 14 61 82 Greatest Support 42 | 40 40 40 42 42 Greatest Overweight (x) 18 | . . . 18 9 Average Overweight (x) . | . . . 1 . Largest Inventory Capacity 25 | 8 8 8 25 25 Average Capacity 21 | 6 8 8 24 20 Most Carried 25 | 4 6 6 25 13 Average Carried 14 | 1 4 5 18 7 Final Capacity 25 | 8 8 8 25 5 Final Carried 13 | 3 5 6 13 3 Scrap Suit Usage (%) 17 | . . . . 82 Parts Cannibalized 5 | . . . . 5 Class Distribution -------------------- 63% | Mutant 19% | Derelict-Mutant 16% | Derelict-Gunner Dominant Class ---------------- Mutant | -10/Materials Mutant | -10/Subcaves Mutant | -8/Scraptown Derelict-Gunner | -6/Factory Resources | -11 -10 -10 -8 -6 ----------- Run | Yrd Mat Sub Scr Fac Matter Collected 809 | 248 67 18 257 219 Remotely . | . . . . . Salvage Created 574 | . 152 18 . 404 Parts 35 | . 12 . . 23 Haulers Intercepted . | . . . . . Recyclers Shooed . | . . . . . Parts Field Recycled . | . . . . . Retrieved Matter . | . . . . . Parts Self-Destructed . | . . . . . Prevented . | . . . . . Parts Restored . | . . . . . Kills | -11 -10 -10 -8 -6 ------- Run | Yrd Mat Sub Scr Fac Combat Hostiles Destroyed 17 | . 8 2 . 7 Guns 4 | . 3 . . 1 Cannons 5 | . . . . 5 AOE 7 | . 5 2 . . Classes Destroyed 7 | . 2 1 . 4 Builder 1 | . . . . 1 Swarmer 3 | . 3 . . . Grunt 8 | . 5 . . 3 Brawler 1 | . . . . 1 Hunter 1 | . . . . 1 Programmer 2 | . . . . 2 Subdweller 2 | . . 2 . . Best Kill Streak 5 | . 5 2 . 4 Combat Bots Only 5 | . 5 2 . 4 Max Kills in Single Turn 2 | . 2 1 . 1 Gunslinging . | . . . . . Exploded 2 | . 2 1 . . Melee . | . . . . . Uniques/NPCs Destroyed . | . . . . . Combat | -11 -10 -10 -8 -6 -------- Run | Yrd Mat Sub Scr Fac Hostile Shots Fired 275 | . 22 12 . 241 Missed 89 | . 6 5 . 78 Hits 186 | . 16 7 . 163 Melee 2 | . . . . 2 Projectile 184 | . 16 7 . 161 AOE 4 | . . . . 4 Critical Strikes 4 | . . . . 4 Damage Taken 3885 | . 132 175 . 3578 Core 883 | . 15 . . 868 Absorbed by Shields . | . . . . . Regen/Repaired (Parts) 64 | . 30 . . 34 Core Remaining (%) 97 | 100 . . 94 . Volleys Fired 72 | . 15 4 . 53 Largest 3 | . 2 2 . 3 Hottest 188 | . 60 60 . 188 Shots Fired 151 | . 30 8 . 113 Gun 32 | . 20 . . 12 Cannon 98 | . . . . 98 Launcher 18 | . 10 8 . . Special 3 | . . . . 3 Kinetic 31 | . 20 . . 11 Thermal 102 | . . . . 102 Explosive 18 | . 10 8 . . Electromagnetic . | . . . . . Robot Hit Streak 10 | . 2 2 . 10 Robot Miss Streak 5 | . 5 . . 2 Penetration Max . | . . . . . Secondary Targets . | . . . . . Shots Hit Robots 84 | . 7 1 . 76 Core Hits 38 | . 13 4 . 21 Critical Kills 1 | . 1 . . . Critical Parts Destroyed . | . . . . . Critical Strikes 2 | . 1 . . 1 Burn 1 | . . . . 1 Destroy 1 | . 1 . . . Melee Attacks . | . . . . . Impact . | . . . . . Slashing . | . . . . . Piercing . | . . . . . Sneak Attacks . | . . . . . Combat Hostiles . | . . . . . Follow-up Attacks . | . . . . . Damage Inflicted 2842 | . 458 444 . 1940 Guns 334 | . 58 . . 276 Cannons 1641 | . . . . 1641 Explosions 844 | . 400 444 . . Melee . | . . . . . Ramming 1 | . . . . 1 Kinetic 309 | . 58 . . 251 Thermal 1688 | . . . . 1688 Explosive 844 | . 400 444 . . Electromagnetic . | . . . . . Impact . | . . . . . Slashing . | . . . . . Piercing . | . . . . . Highest Corruption 20 | . . . . 20 Average Corruption 5 | . . . . 5 Corruption Purged . | . . . . . Corruption Blocked . | . . . . . Effects 24 | . . . . 24 Message Errors 5 | . . . . 5 Matter Fused 5 | . . . . 5 Heat Flow Errors 2 | . . . . 2 Energy Discharges 4 | . . . . 4 Data Loss (minor) 4 | . . . . 4 Data Loss (major) 2 | . . . . 2 Misfires 2 | . . . . 2 Overload Shots . | . . . . . Overflow Damage 6 | . 6 . . . Projectiles . | . . . . . Explosions 6 | . 6 . . . Melee . | . . . . . Knockbacks . | . . . . . Impact . | . . . . . Kinetic . | . . . . . Secondary . | . . . . . Self-Inflicted Damage 37 | . . 37 . . Shots 1 | . . 1 . . Rammed 1 | . . . . 1 Targets Rammed 1 | . . . . 1 Kicked . | . . . . . Crushed . | . . . . . Highest Temperature 328 | . 9 . . 328 Average Temperature 141 | . 9 . . 147 Received Heat Transfer 522 | . 9 18 . 495 Effects 4 | . . . . 4 Energy Bleed 1 | . . . . 1 Interference 3 | . . . . 3 Siege Activations . | . . . . . Martial Activations . | . . . . . Shielding Activations . | . . . . . Robots Disrupted . | . . . . . Combat Hostiles . | . . . . . Robots Corrupted . | . . . . . Combat Hostiles . | . . . . . Parts Fried . | . . . . . Impact Corruptions . | . . . . . Robots Melted 1 | . . . . 1 Combat Hostiles 1 | . . . . 1 Parts Melted 1 | . . . . 1 Heat Transferred 2960 | . . . . 2960 Parts Sabotaged . | . . . . . Parts Stolen . | . . . . . Parts Stripped . | . . . . . Power Chain Reactions . | . . . . . Alert | -11 -10 -10 -8 -6 ------- Run | Yrd Mat Sub Scr Fac Maximum Alert Level . | . . . . . Low Security (%) 100 | 100 100 . . 100 Level 1 . | . . . . . Level 2 . | . . . . . Level 3 . | . . . . . Level 4 . | . . . . . Level 5 . | . . . . . High Security . | . . . . . Max Security . | . . . . . Peak Influence 130 | . 130 . . 80 Initial . | . . . . . Average 17 | . 39 . . 7 Influence Increases 436 | . 216 . . 220 Destroy 0b10 Robot/C 300 | . 160 . . 140 Destroy 0b10 Robot/NC 5 | . . . . 5 Destroy Leader 70 | . 30 . . 40 Successful Hack 11 | . 6 . . 5 Disable Machine 15 | . . . . 15 Destroy Structure 20 | . 20 . . . Lose Combat Pursuer 15 | . . . . 15 Influence Decreases 436 | . 196 20 . 220 Entered New Map 10 | . . 10 . . Time Decay 343 | . 186 10 . 147 Lost Part 83 | . 10 . . 73 Squads Dispatched 4 | . 1 . . 3 Investigation 2 | . 1 . . 1 Extermination 2 | . . . . 2 Reinforcement . | . . . . . Assault . | . . . . . Garrison . | . . . . . Intercept . | . . . . . Searches Triggered . | . . . . . Construction Impeded . | . . . . . Haulers Reinforced . | . . . . . Active Scanning Responses . | . . . . . Cargo Convoy Interrupts . | . . . . . Stealth | -11 -10 -10 -8 -6 --------- Run | Yrd Mat Sub Scr Fac Distress Signals . | . . . . . Communications Jammed . | . . . . . Distress Signals . | . . . . . Times Spotted 23 | . 10 2 . 11 Peak Tracking Total 5 | . 5 2 . 4 Tactical Retreats 1 | . . . . 1 Traps | -11 -10 -10 -8 -6 ------- Run | Yrd Mat Sub Scr Fac Traps Triggered 3 | . 1 . . 2 Indirectly . | . . . . . Trap Hack Attempts . | . . . . . Triggered . | . . . . . Disarmed . | . . . . . Reprogrammed . | . . . . . Reused . | . . . . . Traps Extracted . | . . . . . Installed . | . . . . . Triggered . | . . . . . Machines | -11 -10 -10 -8 -6 ---------- Run | Yrd Mat Sub Scr Fac Machines Disabled 1 | . . . . 1 Max in Single Turn 1 | . . . . 1 Machines Repaired . | . . . . . Machines Dismantled . | . . . . . Machines Sabotaged . | . . . . . Overloaded Fab Kills . | . . . . . Hacking | -11 -10 -10 -8 -6 --------- Run | Yrd Mat Sub Scr Fac Machines Accessed 8 | . 2 . 2 4 Terminals 5 | . 1 . . 4 Fabricators . | . . . . . Repair Stations 1 | . 1 . . . Recycling Units . | . . . . . Scanalyzers . | . . . . . Garrison Access . | . . . . . Total Hacks 23 | . 7 . 8 8 Successful 18 | . 5 . 8 5 Failed 5 | . 2 . . 3 Catastrophic . | . . . . . Database Lockouts . | . . . . . Manual . | . . . . . Terminals 10 | . 2 . . 8 Fabricators . | . . . . . Repair Stations 5 | . 5 . . . Recycling Units . | . . . . . Scanalyzers . | . . . . . Garrison Access . | . . . . . Terminal Hacks 14 | . 1 . 8 5 Record 5 | . . . 3 2 Robot Analysis 5 | . . . 5 . Open DSF 2 | . . . . 2 Alert Level 1 | . . . . 1 Zone Layout 1 | . 1 . . . Fabricator Hacks . | . . . . . Repair Station Hacks 4 | . 4 . . . Scan Component 2 | . 2 . . . Repair 2 | . 2 . . . Recycling Unit Hacks . | . . . . . Scanalyzer . | . . . . . Garrison Access Hacks . | . . . . . Unauthorized Hacks . | . . . . . Terminals . | . . . . . Fabricators . | . . . . . Repair Stations . | . . . . . Recycling Units . | . . . . . Scanalyzers . | . . . . . Garrison Access . | . . . . . Data Cores Recovered . | . . . . . Used . | . . . . . Hacking Detections 2 | . . . . 2 Full Trace Events . | . . . . . Feedback Events . | . . . . . Feedback Blocked . | . . . . . Robot Schematics Acquired . | . . . . . Robots Built . | . . . . . Authchips . | . . . . . Time . | . . . . . Total Robot Build Rating . | . . . . . Part Schematics Acquired . | . . . . . Parts Built . | . . . . . Authchips . | . . . . . Time . | . . . . . Total Part Build Rating . | . . . . . Part Studies Acquired . | . . . . . Parts Repaired 2 | . 2 . . . Time 52 | . 52 . . . Parts Recycled . | . . . . . Recycled Matter . | . . . . . Retrieved Matter . | . . . . . Retrieved Components . | . . . . . Parts Scanalyzed . | . . . . . Part Schematics Acquired . | . . . . . Parts Damaged . | . . . . . Bothacking | -11 -10 -10 -8 -6 ------------ Run | Yrd Mat Sub Scr Fac Used RIF Installer . | . . . . . Robots Hacked . | . . . . . Non-combat . | . . . . . Combat . | . . . . . Robot Hacks Applied . | . . . . . Relay Couplers Released . | . . . . . Fabnet Peak Effective % . | . . . . . Robots Rewired . | . . . . . Allies Hacked . | . . . . . Hacks Repelled . | . . . . . Allies | -11 -10 -10 -8 -6 -------- Run | Yrd Mat Sub Scr Fac Total Allies . | . . . . . Largest Group . | . . . . . Highest-Rated Group . | . . . . . Highest-Rated Ally . | . . . . . Total Orders . | . . . . . Ally Attacks . | . . . . . Total Damage . | . . . . . Kills . | . . . . . Allies Corrupted . | . . . . . Allies Melted . | . . . . . Intel | -11 -10 -10 -8 -6 ------- Run | Yrd Mat Sub Scr Fac Active Infowar (turns) 981 | . . . . 981 Decoding 981 | . . . . 981 Robot Analysis Total 5 | . . . 5 . Derelict Logs Recovered . | . . . . . Drone Launches . | . . . . . Drone Recoveries . | . . . . . Decoded 0b10 Intel 17 | . . . . 17 Garrisons 1 | . . . . 1 Patrols 8 | . . . . 8 Investigations 1 | . . . . 1 Guards 7 | . . . . 7 Exploration | -11 -10 -10 -8 -6 ------------- Run | Yrd Mat Sub Scr Fac Turns Passed 5591 | 83 585 123 3612 1188 Spaces Moved 2298 | 45 194 66 1472 521 Core 129 | 3 . . 5 121 Treads 2099 | 42 194 66 1467 330 Legs . | . . . . . Wheels 15 | . . . . 15 Hover 55 | . . . . 55 Flight . | . . . . . Fastest Speed 50 | 50 160 160 160 50 Average Speed 215 | 152 160 160 240 179 Slowest Speed 950 | 160 160 160 950 500 Overloaded Moves . | . . . . . Propulsion Burnouts . | . . . . . Robots Hopped . | . . . . . Potential Cave-ins . | . . . . . Cave-ins Triggered . | . . . . . Exploration Rate (%) 31 | 6 44 8 90 11 Regions Visited 4 Branch Regions 2 Pre-discovered Areas . | . . . . . Known Exits Taken . | . . . . . Unknown Exits Taken 4 | 1 1 1 1 . Scrap Searched 7 | . . . 7 . Spaces Dug . | . . . . . Terrain Destroyed 32 | . 27 5 . . Melee . | . . . . . Projectile . | . . . . . AOE 32 | . 27 5 . . Terrain Rammed . | . . . . . Walls Destroyed . | . . . . . Machines Disabled . | . . . . . Actions | -11 -10 -10 -8 -6 --------- Run | Yrd Mat Sub Scr Fac Total 2809 | 59 440 76 1553 681 Wait 298 | . 222 6 16 54 Move 2294 | 44 193 65 1471 521 Hop . | . . . . . Pick Up 67 | 9 5 1 32 20 Fast Attach 2 | . . . 2 . Attach 38 | 6 3 . 4 25 Detach 3 | . . . 1 2 Swap 5 | . 2 . 3 . Drop 29 | . . . 24 5 Fire 72 | . 15 4 . 53 Melee . | . . . . . Ram 1 | . . . . 1 Kick . | . . . . . Crush . | . . . . . Escape Stasis . | . . . . . Rewire . | . . . . . Trap . | . . . . . Miscellaneous . | . . . . . Route ------- -11/Scrapyard -10/Materials (discovered 3 exits: [*Mat] / [*Min] / [*Sub]) -10/Subcaves -8/Scraptown (discovered 2 exits: *Fac x2) -6/Factory (discovered 1 exit: [*Fac]) History --------- Turn | Location | Event 20 | -11/Scrapyard | Discovered new exit (range 15) 84 | -11/Scrapyard | Entered Materials 292 | -10/Materials | Discovered new exit (range 14) 306 | -10/Materials | Build established: Mutant 336 | -10/Materials | Repaired Lgt. Treads 364 | -10/Materials | Repaired Lgt. Treads 437 | -10/Materials | Discovered new exit (range 15) 648 | -10/Materials | Discovered new exit (range 4) 669 | -10/Materials | Entered Subcaves 670 | -10/Subcaves | Approached by a straggling Scientist 715 | -10/Subcaves | Ambushed by Subdwellers from Twisted Machinery 718 | -10/Subcaves | A swath of the cavern ceiling suddenly collapsed 788 | -10/Subcaves | Scientist uncovered a shortcut to Scraptown 792 | -10/Subcaves | Entered Scraptown 1416 | -8/Scraptown | Heard Great Nut preacher, LISTEN AND RECITE! 1690 | -8/Scraptown | Discovered new exit (range 7) 2014 | -8/Scraptown | Visited Awakened 2084 | -8/Scraptown | Visited TADAMA 2163 | -8/Scraptown | Visited UFD Registry 2206 | -8/Scraptown | Registered with UFD as "Armorcycle" 2300 | -8/Scraptown | Visited Fellowship of the Rings 2360 | -8/Scraptown | Visited Science Testing Area 2789 | -8/Scraptown | Visited Scrap Suit Storage 2823 | -8/Scraptown | Found Scrap Suit 2881 | -8/Scraptown | Visited Curators Association 3273 | -8/Scraptown | Visited Scrapoid Pod Storage 3328 | -8/Scraptown | Visited DA-N13 Charitable Foundation 3362 | -8/Scraptown | Found DCF Scrap (29 items) 3547 | -8/Scraptown | Visited Derelict Rescue Squad 3559 | -8/Scraptown | Found DRS Beacon 3614 | -8/Scraptown | Visited Chapter 10 3709 | -8/Scraptown | Visited Infowarlord's Domain 3732 | -8/Scraptown | Build established: Derelict-Mutant 3777 | -8/Scraptown | Visited Analyses Database 4161 | -8/Scraptown | Discovered new exit (range 5) 4404 | -8/Scraptown | Entered Factory 4404 | -6/Factory | Evolved 8 slots: Power x1, Propulsion x2, Utility x4, Weapon x1 4879 | -6/Factory | Build established: Derelict-Gunner 5313 | -6/Factory | Spotted B-75 Beast 5418 | -6/Factory | Lost 9 parts (2p2n2u3w) 5478 | -6/Factory | System corruption reached 10% 5508 | -6/Factory | Core integrity fell below 50% 5534 | -6/Factory | Core integrity fell below 20% 5545 | -6/Factory | Discovered new exit (range 12) 5561 | -6/Factory | Lost 10 parts (1p2n3u4w) 5579 | -6/Factory | Found Launcher Loader 5592 | -6/Factory | Destroyed by H-66 Slayer with Gauss Rifle Last Messages --------------- System corrupted: Energy discharge (-31). >> DECODED: Garrison Access location. Triggered Proton Bomb Trap. A bubble of electromagnetic force engulfs the area. Matter Pump disabled. Acquired 2 matter. Acquired 4 matter. Acquired 1 matter. Acquired 4 matter. Connecting with DSF Access... System corrupted: Matter fused (-10). ALERT: Cargo convoy en route, clear transfer corridor. Acquired Com. Wheel. Acquired Launcher Loader. >> DECODED: Security location. R0 ZLYLZ1Q4#NHLRCVDPB9QLSA V2XAA=>HR> Acquired Imp. Hacking Suite. Penetrated by Slug. Map ----- +----------------------------------------------------+ | ??""" """ # #???# + " # | | ? """ """ # %#???# """ """ ### ] # | | # """ """ # #???# """ """ #?##""#######? | | # # #???# """ """ #?? ?????? | | ??""" """ + #???# * #? ????? | | ??""" """ # #???# # ????? | | # """ """ # % #???############## #??? | | # #####%#????????????????# #??? | | # """ """ #???# #????????????????# #??? | | ? """ """ #???# #????????????????? #??? | | # """ """ #???# #??????????????????? #??? | | # ##### ####???????????????? #??? | | # + +???????????????? #??? | | ?####+###+# ##???????????????????? ????? | | ????# #?# #??????????????????????? ???????? | | ????# #?# #???????????????????????????????? | | ????# ### #???????????????????????????????? | | ????# #####???????????????????????????? | | ????# # ?#####?####????????????????? | | ????# " ?????????????????? | | ????#